fUST/lending_fUST_20240114
["ID","MTS","AMOUNT","RATE_DAILY","PERIOD"]
[311513265,1705171842560,-500.0,0.00030136,2]
[311513267,1705171842568,-500.0,0.00030136,2]
[311513269,1705171842578,-505.16618972,0.00030136,2]
[311513271,1705171842587,-500.0,0.00030136,2]
[311513273,1705171842596,-500.0,0.00030136,2]
[311513275,1705171842605,-317.3818262,0.00030136,2]
[311513277,1705171842613,-501.28852085,0.00030136,2]
[311513279,1705171842623,-515.20044947,0.00030136,2]
[311513281,1705171842631,-500.0,0.00030136,2]
[311513283,1705171842641,-502.45957006,0.00030136,5]
[311513285,1705171842650,-501.13724917,0.00030136,2]
[311513287,1705171842659,-507.17608318,0.00030136,2]
[311513289,1705171842670,-500.0,0.00030136,2]
[311513291,1705171842682,-332.51710282,0.00030136,2]
[311513293,1705171842691,-603.37503213,0.00030136,2]
[311513295,1705171842700,-500.0,0.00030136,2]
[311513297,1705171842708,-596.07060748,0.00030136,2]
[311513298,1705171842719,-500.0,0.00030136,2]
[311513301,1705171842730,-418.87603852,0.00030136,2]
[311513302,1705171842739,-512.04464966,0.00030136,2]
[311513305,1705171842748,-2093.44,0.00030136,2]
[311513308,1705171842757,-500.0,0.00030136,2]
[311513311,1705171842767,-500.0,0.00030136,2]
[311513313,1705171842776,-500.0,0.00030136,2]
[311513315,1705171842785,-500.0,0.00030136,2]
[311513317,1705171842794,-506.74811527,0.00030136,2]
[311513320,1705171842803,-500.0,0.00030136,2]
[311513323,1705171842813,-506.7967264,0.00030136,2]
[311513326,1705171842823,-781.97,0.00030136,2]
[311513329,1705171842832,-500.0,0.00030136,2]
[311513332,1705171842842,-503.51601162,0.00030136,2]
[311513335,1705171842851,-600.78192759,0.00030136,2]
[311513338,1705171842860,-500.0,0.00030136,2]
[311513341,1705171842869,-500.94723576,0.00030136,2]
[311513344,1705171842878,-500.0,0.00030136,2]
[311513346,1705171842887,-500.0,0.00030136,2]
[311513348,1705171842897,-500.0,0.00030136,2]
[311513349,1705171842905,-500.0,0.00030136,2]
[311513350,1705171842914,-500.0,0.00030136,2]
[311513351,1705171842923,-535.73880741,0.00030136,2]
[311513352,1705171842933,-500.0,0.00030136,2]
[311513353,1705171842943,-519.79206923,0.00030136,2]
[311513354,1705171842951,-1000.0,0.00030136,2]
[311513355,1705171842960,-502.22848087,0.00030136,2]
[311513356,1705171842969,-500.0,0.00030136,2]
[311513357,1705171842978,-500.0,0.00030136,2]
[311513358,1705171842987,-353.20690116,0.00030136,2]
[311513359,1705171842996,-500.0,0.00030136,2]
[311513360,1705171843005,-500.0,0.00030136,2]
[311513361,1705171843015,-500.0,0.00030136,2]
[311513362,1705171843024,-2808.3,0.00030136,2]
[311513363,1705171843033,-500.0,0.00030136,2]
[311513364,1705171843042,-500.0,0.00030136,2]
[311513365,1705171843052,-500.0,0.00030136,2]
[311513366,1705171843061,-500.0,0.00030136,2]
[311513367,1705171843070,-500.0,0.00030136,2]
[311513368,1705171843080,-502.49238258,0.00030136,2]
[311513369,1705171843089,-200.21982101,0.00030136,2]
[311513370,1705171843099,-500.0,0.00030136,2]
[311513371,1705171843108,-397.33178559,0.00030136,2]
[311513372,1705171843118,-500.0,0.00030136,2]
[311513373,1705171843127,-500.0,0.00030136,2]
[311513374,1705171843136,-512.2627489,0.00030136,2]
[311513375,1705171843146,-500.0,0.00030136,2]
[311513376,1705171843156,-500.0,0.00030136,2]
[311513378,1705171843164,-500.0,0.00030136,2]
[311513380,1705171843173,-500.0,0.00030136,2]
[311513382,1705171843182,-500.0,0.00030136,2]
[311513384,1705171843191,-500.0,0.00030136,2]
[311513386,1705171843200,-502.21748296,0.00030136,2]
[311513388,1705171843209,-500.0,0.00030136,2]
[311513390,1705171843218,-500.0,0.00030136,2]
[311513392,1705171843227,-511.65056995,0.00030136,2]
[311513394,1705171843237,-500.0,0.00030136,2]
[311513396,1705171843247,-667.02,0.00030136,2]
[311513398,1705171843255,-500.0,0.00030136,2]
[311513399,1705171843265,-500.0,0.00030136,2]
[311513401,1705171843279,-362.62491012,0.00030136,2]
[311513403,1705171843288,-500.0,0.00030136,2]
[311513405,1705171843297,-500.0,0.00030136,2]
[311513407,1705171843307,-500.0,0.00030136,2]
[311513409,1705171843316,-500.0,0.00030136,2]
[311513411,1705171843325,-500.0,0.00030136,2]
[311513413,1705171843334,-173.39777827,0.00030136,2]
[311513415,1705171843343,-500.0,0.00030136,2]
[311513417,1705171843352,-1306.06,0.00030136,2]
[311513419,1705171843361,-500.0,0.00030136,2]
[311513421,1705171843369,-500.0,0.00030136,2]
[311513423,1705171843378,-500.0,0.00030136,2]
[311513425,1705171843387,-341.22,0.00030136,2]
[311513427,1705171843396,-500.0,0.00030136,2]
[311513429,1705171843405,-500.0,0.00030136,2]
[311513431,1705171843414,-500.0,0.00030136,2]
[311513433,1705171843423,-500.0,0.00030136,2]
[311513436,1705171843432,-500.0,0.00030136,2]
[311513438,1705171843441,-2442.99,0.00030136,2]
[311513439,1705171843449,-500.0,0.00030136,2]
[311513441,1705171843458,-509.99,0.00030136,2]
[311513443,1705171843467,-500.0,0.00030136,2]
[311513445,1705171843476,-500.0,0.00030136,2]
[311513448,1705171843486,-500.0,0.00030136,2]
[311513449,1705171843495,-500.0,0.00030136,2]
[311513451,1705171843505,-500.0,0.00030136,2]
[311513453,1705171843514,-522.73,0.00030136,2]
[311513455,1705171843526,-500.0,0.00030136,2]
[311513457,1705171843535,-198.7544661,0.00030137,2]
[311513459,1705171843544,-198.7544661,0.00030137,2]
[311513461,1705171843553,-198.7544661,0.00030137,2]
[311513463,1705171843563,-198.7544661,0.00030137,2]
[311513465,1705171843571,-198.7544661,0.00030137,2]
[311513467,1705171843581,-198.7544661,0.00030137,2]
[311513478,1705171843665,-198.7544661,0.00030137,2]
[311513480,1705171843677,-198.7544661,0.00030137,2]
[311513482,1705171843686,-198.7544661,0.00030137,2]
[311513484,1705171843696,-198.7544661,0.00030137,2]
[311513486,1705171843705,-198.7544661,0.00030137,2]
[311513488,1705171843714,-198.7544661,0.00030137,2]
[311513490,1705171843723,-198.7544661,0.00030137,2]
[311513492,1705171843732,-198.7544661,0.00030137,2]
[311513494,1705171843741,-198.7544661,0.00030137,2]
[311513496,1705171843750,-198.7544661,0.00030137,2]
[311513498,1705171843759,-197.9059461,0.00030137,2]
[311513499,1705171843769,-198.7191111,0.00030137,2]
[311513501,1705171843778,-500.0,0.00030409,2]
[311513503,1705171843788,-246.867047,0.00030409,2]
[311513505,1705171843798,-246.867047,0.00030409,2]
[311513507,1705171843807,-246.867047,0.00030409,2]
[311513509,1705171843817,-246.867047,0.00030409,2]
[311513511,1705171843826,-500.0,0.0003041,2]
[311513514,1705171843836,-500.0,0.0003041,2]
[311513515,1705171843846,-500.0,0.0003041,2]
[311513517,1705171843855,-500.0,0.0003041,2]
[311513519,1705171843863,-500.0,0.0003041,2]
[311513521,1705171843872,-500.0,0.0003041,2]
[311513523,1705171843881,-500.0,0.0003041,2]
[311513525,1705171843890,-502.99875543,0.0003041,2]
[311513527,1705171843899,-500.0,0.0003041,2]
[311513529,1705171843908,-500.0,0.0003041,2]
[311513531,1705171843917,-511.88964597,0.0003041,2]
[311513533,1705171843926,-500.0,0.0003041,2]
[311513535,1705171843934,-384.95782185,0.0003041,2]
[311513537,1705171843943,-500.0,0.0003041,2]
[311513539,1705171843952,-500.0,0.0003041,2]
[311513541,1705171843962,-500.0,0.0003041,2]
[311513543,1705171843971,-501.18221838,0.0003041,2]
[311513545,1705171843980,-500.0,0.0003041,2]
[311513547,1705171843989,-388.5668798,0.0003041,2]
[311513549,1705171843998,-502.46645335,0.0003041,2]
[311513551,1705171844007,-499.82950867,0.0003041,2]
[311513553,1705171844015,-221.65303753,0.0003041,2]
[311513555,1705171844026,-500.0,0.0003041,2]
[311513557,1705171844035,-500.0,0.0003041,2]
[311513559,1705171844045,-500.0,0.0003041,2]
[311513561,1705171844054,-500.0,0.0003041,2]
[311513563,1705171844063,-500.0,0.0003041,2]
[311513565,1705171844073,-500.0,0.0003041,2]
[311513567,1705171844082,-500.0,0.0003041,2]
[311513569,1705171844091,-500.0,0.0003041,2]
[311513571,1705171844100,-500.0,0.0003041,2]
[311513573,1705171844109,-548.45054996,0.0003041,2]
[311513575,1705171844118,-500.0,0.0003041,2]
[311513577,1705171844127,-560.31477797,0.0003041,2]
[311513579,1705171844136,-404.64629949,0.0003041,2]
[311513580,1705171844145,-500.0,0.0003041,2]
[311513582,1705171844154,-500.0,0.0003041,2]
[311513584,1705171844163,-553.26532253,0.0003041,2]
[311513586,1705171844172,-500.0,0.0003041,2]
[311513588,1705171844182,-500.0,0.0003041,2]
[311513590,1705171844191,-500.0,0.0003041,2]
[311513592,1705171844200,-344.25649987,0.0003041,2]
[311513594,1705171844209,-500.0,0.0003041,2]
[311513596,1705171844218,-500.0,0.0003041,2]
[311513598,1705171844227,-500.0,0.0003041,2]
[311513600,1705171844236,-500.0,0.0003041,2]
[311513602,1705171844245,-258.27903606,0.0003041,2]
[311513604,1705171844254,-504.91326145,0.0003041,2]
[311513606,1705171844263,-500.0,0.0003041,2]
[311513608,1705171844273,-606.74008511,0.0003041,2]
[311513610,1705171844283,-503.24629556,0.0003041,2]
[311513612,1705171844292,-500.0,0.0003041,2]
[311513614,1705171844301,-500.51535724,0.0003041,2]
[311513616,1705171844310,-500.0,0.0003041,2]
[311513618,1705171844319,-500.0,0.0003041,2]
[311513620,1705171844328,-500.0,0.0003041,2]
[311513622,1705171844337,-505.37692655,0.0003041,2]
[311513624,1705171844346,-510.24468115,0.0003041,2]
[311513626,1705171844355,-500.0,0.0003041,2]
[311513628,1705171844364,-500.0,0.0003041,2]
[311513630,1705171844373,-401.24,0.0003041,2]
[311513632,1705171844382,-500.0,0.0003041,2]
[311513634,1705171844390,-561.23309472,0.0003041,2]
[311513636,1705171844399,-505.24211755,0.0003041,2]
[311513638,1705171844408,-504.21600792,0.0003041,2]
[311513639,1705171844417,-500.0,0.0003041,2]
[311513642,1705171844427,-500.0,0.0003041,2]
[311513643,1705171844436,-500.0,0.0003041,2]
[311513645,1705171844445,-507.48338079,0.0003041,2]
[311513647,1705171844455,-500.0,0.0003041,2]
[311513649,1705171844464,-500.0,0.0003041,2]
[311513651,1705171844473,-500.0,0.0003041,2]
[311513653,1705171844484,-500.0,0.0003041,2]
[311513655,1705171844494,-500.0,0.0003041,2]
[311513658,1705171844503,-500.0,0.0003041,2]
[311513659,1705171844514,-310.17143166,0.0003041,2]
[311513661,1705171844524,-500.0,0.0003041,2]
[311513663,1705171844533,-500.0,0.0003041,2]
[311513665,1705171844542,-503.9317986,0.0003041,2]
[311513668,1705171844552,-521.82,0.0003041,2]
[311513669,1705171844561,-500.0,0.0003041,2]
[311513671,1705171844570,-500.0,0.0003041,2]
[311513673,1705171844579,-500.0,0.0003041,2]
[311513675,1705171844588,-500.0,0.0003041,2]
[311513677,1705171844597,-500.0,0.0003041,2]
[311513679,1705171844606,-500.0,0.0003041,2]
[311513681,1705171844615,-500.0,0.0003041,2]
[311513683,1705171844624,-500.0,0.0003041,2]
[311513685,1705171844633,-500.0,0.0003041,2]
[311513687,1705171844642,-500.0,0.0003041,2]
[311513689,1705171844651,-500.0,0.0003041,2]
[311513691,1705171844661,-542.06875698,0.0003041,2]
[311513693,1705171844671,-500.0,0.0003041,2]
[311513695,1705171844683,-500.0,0.0003041,2]
[311513697,1705171844692,-189.71706183,0.0003041,2]
[311513700,1705171844701,-2093.44,0.0003041,2]
[311513702,1705171844713,-500.0,0.0003041,2]
[311513704,1705171844724,-500.0,0.0003041,2]
[311513706,1705171844734,-781.97,0.0003041,2]
[311513708,1705171844743,-500.0,0.0003041,2]
[311513710,1705171844752,-500.0,0.0003041,2]
[311513712,1705171844761,-500.0,0.0003041,2]
[311513714,1705171844770,-500.0,0.0003041,2]
[311513716,1705171844780,-500.0,0.0003041,2]
[311513718,1705171844788,-500.0,0.0003041,2]
[311513720,1705171844798,-505.55188647,0.0003041,2]
[311513721,1705171844807,-500.0,0.0003041,2]
[311513723,1705171844816,-500.0,0.0003041,2]
[311513725,1705171844825,-2808.3,0.0003041,2]
[311513727,1705171844834,-500.0,0.0003041,2]
[311513729,1705171844844,-500.0,0.0003041,2]
[311513731,1705171844853,-500.0,0.0003041,2]
[311513733,1705171844862,-500.0,0.0003041,2]
[311513735,1705171844871,-500.0,0.0003041,2]
[311513737,1705171844880,-500.0,0.0003041,2]
[311513739,1705171844888,-500.0,0.0003041,2]
[311513741,1705171844897,-500.0,0.0003041,2]
[311513743,1705171844906,-500.0,0.0003041,2]
[311513745,1705171844914,-500.0,0.0003041,2]
[311513747,1705171844923,-500.0,0.0003041,2]
[311513749,1705171844932,-500.0,0.0003041,2]
[311513751,1705171844941,-500.0,0.0003041,2]
[311513753,1705171844951,-667.02,0.0003041,2]
[311513755,1705171844960,-500.0,0.0003041,2]
[311513757,1705171844968,-500.39389175,0.0003041,2]
[311513759,1705171844977,-500.0,0.0003041,2]
[311513761,1705171844986,-500.0,0.0003041,2]
[311513763,1705171844995,-500.0,0.0003041,2]
[311513765,1705171845004,-500.0,0.0003041,2]
[311513767,1705171845013,-507.60003843,0.0003041,2]
[311513769,1705171845023,-500.0,0.0003041,2]
[311513771,1705171845032,-1306.06,0.0003041,2]
[311513772,1705171845040,-500.0,0.0003041,2]
[311513775,1705171845050,-500.0,0.0003041,2]
[311513776,1705171845060,-500.0,0.0003041,2]
[311513778,1705171845069,-500.0,0.0003041,2]
[311513780,1705171845079,-2442.99,0.0003041,2]
[311513782,1705171845088,-500.0,0.0003041,2]
[311513785,1705171845098,-509.99,0.0003041,2]
[311513786,1705171845107,-502.76880136,0.0003041,2]
[311513788,1705171845116,-500.0,0.0003041,2]
[311513791,1705171845126,-500.0,0.0003041,2]
[311513792,1705171845135,-522.73,0.0003041,2]
[311513795,1705171845144,-506.52670051,0.0003041,2]
[311513796,1705171845153,-246.867047,0.0003041,2]
[311513798,1705171845163,-246.867045,0.0003041,2]
[311513800,1705171845173,-166.666666,0.00030452,2]
[311513802,1705171845182,-500.0,0.00030683,2]
[311513804,1705171845191,-500.0,0.00030684,2]
[311513806,1705171845201,-530.04,0.00030684,2]
[311513808,1705171845210,-218.2345047,0.00030684,2]
[311513810,1705171845219,-500.0,0.00030684,2]
[311513812,1705171845228,-151.96,0.00030684,2]
[311513814,1705171845237,-505.38748439,0.00030684,2]
[311513816,1705171845246,-500.0,0.00030684,2]
[311513818,1705171845255,-500.0,0.00030684,2]
[311513820,1705171845265,-500.0,0.00030684,2]
[311513822,1705171845278,-500.0,0.00030684,2]
[311513824,1705171845287,-2093.44,0.00030684,2]
[311513826,1705171845296,-500.0,0.00030684,2]
[311513828,1705171845307,-781.97,0.00030684,2]
[311513830,1705171845317,-500.0,0.00030684,2]
[311513832,1705171845326,-500.0,0.00030684,2]
[311513834,1705171845335,-623.72,0.00030684,2]
[311513836,1705171845344,-500.0,0.00030684,2]
[311513838,1705171845353,-2808.3,0.00030684,2]
[311513840,1705171845362,-544.69462853,0.00030684,2]
[311513842,1705171845371,-500.0,0.00030684,2]
[311513844,1705171845380,-500.0,0.00030684,2]
[311513846,1705171845389,-500.0,0.00030684,2]
[311513848,1705171845398,-292.07623867,0.00030684,2]
[311513850,1705171845407,-500.0,0.00030684,2]
[311513851,1705171845416,-500.0,0.00030684,2]
[311513852,1705171845425,-413.03430595,0.00030684,2]
[311513853,1705171845434,-500.0,0.00030684,2]
[311513854,1705171845443,-500.0,0.00030684,2]
[311513855,1705171845452,-667.02,0.00030684,2]
[311513856,1705171845462,-500.0,0.00030684,2]
[311513858,1705171845471,-500.0,0.00030684,2]
[311513860,1705171845481,-500.0,0.00030684,2]
[311513862,1705171845490,-1306.06,0.00030684,2]
[311513864,1705171845499,-500.0,0.00030684,2]
[311513866,1705171845508,-2442.99,0.00030684,2]
[311513868,1705171845518,-500.0,0.00030684,2]
[311513870,1705171845531,-509.99,0.00030684,2]
[311513872,1705171845540,-522.73,0.00030684,2]
[311513874,1705171845549,-196.36280374,0.00030744,7]
[311513876,1705171845558,-300.0,0.000309,15]
[311513878,1705171845567,-500.0,0.00030958,2]
[311513880,1705171845576,-500.0,0.00030958,2]
[311513882,1705171845585,-500.0,0.00030958,2]
[311513884,1705171845594,-500.0,0.00030958,2]
[311513886,1705171845603,-500.0,0.00030958,2]
[311513888,1705171845612,-500.0,0.00030958,2]
[311513890,1705171845621,-2093.44,0.00030958,2]
[311513892,1705171845631,-781.97,0.00030958,2]
[311513894,1705171845640,-500.0,0.00030958,2]
[311513896,1705171845649,-158.3,0.00030958,2]
[311513898,1705171845658,-176.07,0.00030958,2]
[311513900,1705171845668,-2808.3,0.00030958,2]
[311513902,1705171845680,-500.0,0.00030958,2]
[311513904,1705171845689,-500.0,0.00030958,2]
[311513906,1705171845698,-500.0,0.00030958,2]
[311513908,1705171845707,-500.0,0.00030958,2]
[311513910,1705171845717,-500.0,0.00030958,2]
[311513912,1705171845726,-500.0,0.00030958,2]
[311513914,1705171845736,-667.02,0.00030958,2]
[311513916,1705171845745,-500.0,0.00030958,2]
[311513918,1705171845756,-625.77,0.00030958,2]
[311513919,1705171845766,-1306.06,0.00030958,2]
[311513921,1705171845779,-500.0,0.00030958,2]
[311513931,1705171845861,-2442.99,0.00030958,2]
[311513933,1705171845870,-509.99,0.00030958,2]
[311513935,1705171845881,-522.73,0.00030958,2]
[311513937,1705171845890,-1289.0,0.0003097,30]
[311513939,1705171845899,-166.0,0.0003097,30]
[311513941,1705171845908,-150.5,0.0003097,30]
[311513943,1705171845917,-21256.6742111,0.00030979,2]
[311513945,1705171845927,-21256.6742111,0.0003098,2]
[311513947,1705171845936,-1289.0,0.0003098,30]
[311513949,1705171845945,-239.84,0.0003098,30]
[311513951,1705171845955,-166.0,0.0003098,30]
[311513954,1705171845964,-150.5,0.0003098,30]
[311513957,1705171845973,-21256.6742111,0.00030981,2]
[311513960,1705171845982,-1289.0,0.0003099,30]
[311513963,1705171845992,-275.43,0.0003099,30]
[311513965,1705171846000,-150.5,0.0003099,30]
[311513967,1705171846010,-166.0,0.0003099,30]
[311513969,1705171846020,-150.5,0.0003099,30]
[311513971,1705171846030,-21256.6742111,0.00030991,2]
[311513973,1705171846039,-4711.91259146,0.00030994,3]
[311513975,1705171846048,-677.25499859,0.00030995,4]
[311513977,1705171846058,-173.61750813,0.00030995,4]
[311513979,1705171846067,-687.75702701,0.00030995,4]
[311513981,1705171846077,-4005.39956635,0.00030995,4]
[311513983,1705171846086,-261.71556348,0.00030995,4]
[311513985,1705171846096,-475.69273896,0.00030996,4]
[311513987,1705171846106,-326.7917286,0.00030996,4]
[311513989,1705171846115,-309.66715594,0.00030996,4]
[311513991,1705171846125,-156.88951629,0.00030996,4]
[311513993,1705171846134,-18868.80777567,0.00030996,4]
[311513995,1705171846143,-1592.19669477,0.00030996,4]
[311513997,1705171846153,-500.0,0.00030996,4]
[311513999,1705171846163,-500.0,0.00030996,4]
[311514001,1705171846173,-230.15960958,0.00030996,4]
[311514003,1705171846182,-418.37121975,0.00030996,4]
[311514005,1705171846191,-315.42580124,0.00030996,4]
[311514007,1705171846200,-500.0,0.00030996,4]
[311514009,1705171846209,-500.0,0.00030996,4]
[311514011,1705171846219,-209.58173587,0.00030996,4]
[311514013,1705171846228,-1537.0959178,0.00030997,4]
[311514015,1705171846237,-749.71777128,0.00030997,4]
[311514017,1705171846246,-500.0,0.00030997,2]
[311514019,1705171846256,-50011.25253182,0.00030998,2]
[311514021,1705171846264,-500.0,0.00030998,2]
[311514023,1705171846276,-260.49537059,0.00030999,4]
[311514025,1705171846285,-500.0,0.00030999,2]
[311514027,1705171846294,-558.98631898,0.00030999,2]
[311514029,1705171846303,-154324.82125574,0.00031,3]
[311514047,1705171846467,-866.89176068,0.00031,3]
[311514050,1705171846478,-6690.59274536,0.00031,3]
[311514054,1705171846509,-2701.20190085,0.00031,3]
[311514056,1705171846522,-1188.0919417,0.00031,3]
[311514098,1705171846903,-198.7544661,0.00029315,2]
[311514100,1705171846914,-1435.92591871,0.00031,3]
[311516514,1705171957946,-155.02790502,0.00026697,4]
[311516515,1705171957967,-979.97209498,0.00026698,2]
[311516522,1705172064794,-194.03572455,0.00021,2]
[311516523,1705172064822,-1512.00274092,0.00021,2]
[311516524,1705172064940,-34.81711154,0.00021,2]
[311516525,1705172089653,-151.0,0.000266,2]
[311516526,1705172089673,-20.02790502,0.00026698,2]
[311516527,1705172089694,-166.666666,0.00027847,2]
[311516528,1705172089715,-174.30542898,0.00027894,2]
[311516540,1705172284791,-425.16748197,0.0002789,2]
[311516541,1705172284812,-155.02635448,0.00027891,4]
[311516542,1705172284831,-748.24511565,0.00027896,2]
[311516543,1705172284851,-1112.22182837,0.00027896,2]
[311516544,1705172284872,-2484.33921953,0.00028249,2]
[311516636,1705172604204,-155.02635448,0.00026998,4]
[311516637,1705172604230,-976.44607626,0.00026998,2]
[311516638,1705172604265,-168.2041759,0.00028051,2]
[311516639,1705172604287,-160.57046713,0.00028054,2]
[311516640,1705172604309,-305.14498772,0.00028249,2]
[311516641,1705172604330,-2480.8991753,0.00028249,2]
[311516642,1705172604351,-156.31102773,0.00028249,2]
[311516643,1705172604374,-165.46010611,0.00028249,2]
[311516644,1705172604394,-344.73296744,0.00028249,2]
[311516645,1705172604415,-155.02635448,0.00028249,2]
[311516646,1705172604436,-156.33436093,0.00028249,2]
[311516647,1705172604457,-19675.84394652,0.00028249,2]
[311516785,1705173039888,-155.02635448,0.00026891,4]
[311516787,1705173039898,-976.44607626,0.00026891,2]
[311516789,1705173039907,-355.68188,0.00026892,2]
[311516791,1705173039916,-914.18352,0.00026998,2]
[311516793,1705173039925,-5533.4629601,0.00027337,2]
[311516795,1705173039934,-8745.38899074,0.00027402,2]
[311516797,1705173039943,-166.666666,0.00027834,2]
[311516799,1705173039952,-24900.0,0.00028187,2]
[311516801,1705173039961,-813.77576109,0.00028211,3]
[311516803,1705173039971,-305.70378365,0.00028249,2]
[311516805,1705173039979,-2422.23084672,0.00028249,2]
[311516807,1705173039989,-280.40399153,0.00028249,2]
[311516809,1705173039999,-155.02635448,0.00028249,2]
[311516811,1705173040008,-619.54814371,0.00028249,2]
[311516813,1705173040020,-534.17597659,0.00028249,2]
[311516815,1705173040029,-155.02635448,0.00028249,2]
[311516817,1705173040037,-167.647572,0.00028383,2]
[311516819,1705173040047,-343.20044242,0.00028724,2]
[311516821,1705173040057,-8393.22432645,0.00028724,2]
[311516823,1705173040066,-1822.05331204,0.00028724,2]
[311516825,1705173040075,-160.57046713,0.00028767,2]
[311516827,1705173040084,-166.666666,0.00028783,2]
[311516829,1705173040093,-178.68823862,0.000289,2]
[311516831,1705173040102,-160.57046713,0.00028931,2]
[311516833,1705173040110,-155.06512735,0.00029,2]
[311516835,1705173040119,-2304.81104845,0.00029,2]
[311516837,1705173040128,-198.7544661,0.00029315,2]
[311516839,1705173040137,-476.64413435,0.00029376,2]
[311516841,1705173040146,-186.06571984,0.0002938,2]
[311516843,1705173040154,-169.13754642,0.00029448,5]
[311516844,1705173040164,-152.31739518,0.00029453,2]
[311516847,1705173040174,-160.57046713,0.00029543,2]
[311516848,1705173040183,-166.666666,0.00029731,2]
[311516851,1705173040192,-189.7987675,0.00029771,2]
[311516852,1705173040201,-5857.54796663,0.000299,3]
[311516854,1705173040210,-200.38451189,0.000299,2]
[311516857,1705173040220,-188.12,0.0002999,3]
[311516858,1705173040229,-156.77,0.0002999,3]
[311516861,1705173040239,-783.86,0.0002999,3]
[311516863,1705173040248,-469.87027249,0.00029998,2]
[311516864,1705173040257,-216.49155598,0.00029999,2]
[311516867,1705173040267,-687.09987426,0.0003,4]
[311516869,1705173040278,-8837.3069586,0.0003,2]
[311516871,1705173040289,-39397.61269561,0.0003,2]
[311516873,1705173040298,-500.0,0.0003,3]
[311516875,1705173040307,-230.0,0.0003,2]
[311516877,1705173040316,-1493.68685892,0.00030035,2]
[311516879,1705173040325,-500.0,0.00030136,2]
[311516881,1705173040335,-500.0,0.00030136,2]
[311516882,1705173040344,-500.0,0.00030136,2]
[311516885,1705173040353,-500.0,0.00030136,2]
[311516886,1705173040362,-500.0,0.00030136,2]
[311516889,1705173040374,-500.0,0.00030136,2]
[311516891,1705173040384,-375.92448165,0.00030136,2]
[311516893,1705173040393,-500.0,0.00030136,2]
[311516895,1705173040402,-500.0,0.00030136,2]
[311516897,1705173040410,-500.0,0.00030136,2]
[311516899,1705173040420,-500.0,0.00030136,2]
[311516901,1705173040429,-500.0,0.00030136,2]
[311516903,1705173040438,-500.0,0.00030136,2]
[311516905,1705173040448,-502.15793404,0.00030136,2]
[311516907,1705173040457,-500.0,0.00030136,2]
[311516909,1705173040466,-377.74911454,0.00030136,2]
[311516911,1705173040475,-500.0,0.00030136,2]
[311516913,1705173040484,-500.0,0.00030136,2]
[311516914,1705173040493,-500.0,0.00030136,2]
[311516917,1705173040503,-500.0,0.00030136,2]
[311516919,1705173040513,-304.18856193,0.00030136,2]
[311516920,1705173040522,-500.0,0.00030136,2]
[311516922,1705173040531,-500.0,0.00030136,2]
[311516924,1705173040541,-500.0,0.00030136,2]
[311516927,1705173040550,-500.0,0.00030136,2]
[311516929,1705173040559,-408.99029699,0.00030136,2]
[311516931,1705173040568,-500.0,0.00030136,2]
[311516933,1705173040577,-634.32631346,0.00030136,2]
[311516935,1705173040587,-500.0,0.00030136,2]
[311516937,1705173040596,-217.08778916,0.00030136,2]
[311516939,1705173040605,-500.0,0.00030136,2]
[311516941,1705173040614,-500.0,0.00030136,2]
[311516943,1705173040623,-500.0,0.00030136,2]
[311516945,1705173040632,-500.0,0.00030136,2]